Cogmind - Beta 13 *** ADVENTURER MODE // 2024.03.02 @ 22:53:40 Player: SleepySid Result: Core destroyed Performance ------------- Evolutions (2) 1000 Regions Visited (4) 800 Robots Destroyed (69) 345 Value Destroyed (1632) 1632 Prototype IDs (0) 0 Alien Tech Used (0) 0 Bonus (78) 78 TOTAL SCORE: 3855 Bonus ------- High Alert Combat Kills 78 Cogmind --------- Core Integrity 0/550 Matter 191/300 Energy 405/435 System Corruption 0% Temperature Critical (560) Movement Walking (260) Ox2 Location -8/Materials Parts ------- > --- POWER (2) -------- Light Ion Engine Light Nuclear Core > --- PROPULSION (3) --- Aluminum Leg > --- UTILITY (4) ------ Medium Storage Unit High-capacity Battery Visual Processing Unit > --- WEAPON (2) ------- (None) > --- INVENTORY (10) --- Light Ion Engine Aluminum Leg Small Storage Unit Huge Storage Unit Compact Matter Pod (150) Pulse Rifle Peak State ------------ > --- POWER ------------ Deuterium Engine Light Nuclear Core > --- PROPULSION ------- Aluminum Leg Aluminum Leg Aluminum Leg > --- UTILITY ---------- Medium Storage Unit Visual Processing Unit Recoil Stabilizer Light Armor Plating > --- WEAPON ----------- Pulse Rifle Heavy Assault Rifle > --- INVENTORY -------- Light Ion Engine Light Ion Engine Aluminum Leg Small Storage Unit Huge Storage Unit High-capacity Battery Compact Matter Pod Assault Cannon [Rating: 22] Favorites ----------- Power Ion Engine Engine Ion Engine Power Core Light Nuclear Core Propulsion Aluminum Leg Treads Light Treads Leg Aluminum Leg Utility Visual Processing Unit Device Recoil Stabilizer Storage Medium Storage Unit Processor Visual Processing Unit Protection Light Armor Plating Weapon Assault Cannon Energy Gun Beam Rifle Ballistic Gun Heavy Assault Rifle Ballistic Cannon Assault Cannon Launcher Rocket Launcher Build | -11 -10 -9 -9 -8 ------- Run | Yrd Mat Mat Min Mat Slots Evolved 4 | . . 2 . 2 Power 1 | . . 1 . . Propulsion 1 | . . . . 1 Utility 2 | . . 1 . 1 Weapon . | . . . . . Parts Attached 66 | 6 11 23 8 18 Power 18 | 1 1 9 1 6 Engine 15 | 1 1 8 1 4 Core 3 | . . 1 . 2 Reactor . | . . . . . Propulsion 16 | 2 2 4 4 4 Treads 2 | 2 . . . . Leg 14 | . 2 4 4 4 Wheel . | . . . . . Hover . | . . . . . Flight . | . . . . . Utility 15 | 1 3 4 3 4 Device 1 | . . . . 1 Storage 7 | 1 . 2 3 1 Processor 5 | . 3 2 . . Hackware . | . . . . . Protection 2 | . . . . 2 Artifact . | . . . . . Weapon 17 | 2 5 6 . 4 Energy Gun 8 | 2 5 . . 1 Energy Cannon . | . . . . . Ballistic Gun 3 | . . 2 . 1 Ballistic Cannon 5 | . . 3 . 2 Launcher 1 | . . 1 . . Special Weapon . | . . . . . Impact Weapon . | . . . . . Slashing Weapon . | . . . . . Piercing Weapon . | . . . . . Special Melee Weapon . | . . . . . Unidentified Prototypes . | . . . . . Parts Lost 11 | . . 4 . 7 Power 4 | . . 3 . 1 Propulsion 2 | . . . . 2 Utility 3 | . . 1 . 2 Weapon 2 | . . . . 2 Highest Loss Streak 7 | . . 2 . 7 To Critical Strikes . | . . . . . Average Slot Usage (%) 98 | . 98 97 100 93 Engine 18 | . 14 18 22 14 Treads 1 | . 7 . . . Leg 22 | . 20 22 22 27 Storage 16 | . 14 14 20 10 Processor 13 | . 12 18 12 9 Protection 1 | . . . . 8 Energy Gun 6 | . 27 1 . 2 Ballistic Gun 1 | . . 3 . 8 Ballistic Cannon 13 | . . 16 22 3 Naked Turns . | . . . . . Heaviest Build 35 | 14 16 30 34 35 Greatest Support 40 | 40 40 20 20 30 Greatest Overweight (x) 1 | . . 1 1 1 Average Overweight (x) . | . . . 1 . Largest Inventory Capacity 25 | 8 8 10 25 10 Average Capacity 8 | 7 8 7 10 10 Most Carried 10 | 8 8 10 10 10 Average Carried 6 | 4 6 5 7 8 Final Capacity 10 | 8 8 10 10 10 Final Carried 10 | 6 8 6 10 6 Class Distribution -------------------- 77% | Mutant 22% | Scavenger-Mutant Dominant Class ---------------- Mutant | -10/Materials Mutant | -9/Materials Mutant | -9/Mines Scavenger-Mutant | -8/Materials Resources | -11 -10 -9 -9 -8 ----------- Run | Yrd Mat Mat Min Mat Matter Collected 1834 | 260 198 648 408 320 Remotely . | . . . . . Salvage Created 1716 | . 374 698 189 455 Parts 134 | . 19 63 22 30 Haulers Intercepted 1 | . . 1 . . Recyclers Shooed 1 | . . . . 1 Parts Field Recycled . | . . . . . Retrieved Matter . | . . . . . Parts Self-Destructed . | . . . . . Prevented . | . . . . . Kills | -11 -10 -9 -9 -8 ------- Run | Yrd Mat Mat Min Mat Combat Hostiles Destroyed 58 | . 8 26 14 10 Guns 25 | . 8 8 . 9 Cannons 33 | . . 18 14 1 Classes Destroyed 9 | . 4 3 1 1 Worker 1 | . . . . 1 Builder 3 | . . 2 . 1 Hauler 1 | . . 1 . . Recycler 1 | . 1 . . . Watcher 5 | . 2 2 . 1 Swarmer 27 | . 3 10 11 3 Grunt 24 | . 5 12 2 5 Brawler 1 | . . . 1 . Sentry 6 | . . 4 . 2 Best Kill Streak 7 | . 4 7 7 4 Combat Bots Only 7 | . 4 7 7 4 Max Kills in Single Turn 2 | . 2 2 2 1 Gunslinging 1 | . 1 . . . Exploded . | . . . . . Melee . | . . . . . Uniques/NPCs Destroyed . | . . . . . Combat | -11 -10 -9 -9 -8 -------- Run | Yrd Mat Mat Min Mat Hostile Shots Fired 404 | . 65 168 52 119 Missed 103 | . 17 48 13 25 Damage Taken 3048 | . 384 946 232 1486 Core 840 | . 89 128 32 591 Absorbed by Shields . | . . . . . Ignored by Resistances 798 | . 111 301 79 307 Regen/Repaired (Parts) 19 | . . 19 . . Core Remaining (%) 74 | 100 64 . 60 . Volleys Fired 166 | . 30 63 16 57 Largest 2 | . 2 2 2 2 Hottest 112 | . 112 88 88 86 Shots Fired 290 | . 60 119 32 79 Gun 147 | . 60 18 . 69 Cannon 143 | . . 101 32 10 Launcher . | . . . . . Special . | . . . . . Kinetic 215 | . . 119 32 64 Thermal 75 | . 60 . . 15 Explosive . | . . . . . Electromagnetic . | . . . . . Robot Hit Streak 12 | . 8 12 12 9 Robot Miss Streak 3 | . 3 3 1 3 Penetration Max . | . . . . . Secondary Targets 2 | . 2 . . . Max Gunslinging Chain 1 | . 1 . . . Shots Hit Robots 180 | . 36 73 19 52 Core Hits 94 | . 17 36 14 27 Critical Kills . | . . . . . Critical Parts Destroyed . | . . . . . Critical Strikes 9 | . 3 6 . . Burn 3 | . 3 . . . Blast 6 | . . 6 . . Melee Attacks . | . . . . . Impact . | . . . . . Slashing . | . . . . . Piercing . | . . . . . Sneak Attacks . | . . . . . Combat Hostiles . | . . . . . Follow-up Attacks . | . . . . . Damage Inflicted 3917 | . 536 1848 550 983 Guns 1550 | . 536 222 . 792 Cannons 2365 | . . 1624 550 191 Explosions . | . . . . . Melee . | . . . . . Ramming 2 | . . 2 . . Kinetic 3197 | . . 1846 550 801 Thermal 718 | . 536 . . 182 Explosive . | . . . . . Electromagnetic . | . . . . . Impact . | . . . . . Slashing . | . . . . . Piercing . | . . . . . Highest Corruption . | . . . . . Average Corruption . | . . . . . Corruption Purged . | . . . . . Corruption Blocked . | . . . . . Overload Shots . | . . . . . Overflow Damage 27 | . . 18 . 9 Projectiles 27 | . . 18 . 9 Explosions . | . . . . . Melee . | . . . . . Knockbacks 26 | . . 17 4 5 Impact . | . . . . . Kinetic 24 | . . 15 4 5 Secondary 2 | . . 2 . . Self-Inflicted Damage . | . . . . . Shots . | . . . . . Rammed . | . . . . . Targets Rammed 1 | . . 1 . . Kicked 1 | . . 1 . . Crushed . | . . . . . Highest Temperature 638 | . 638 285 165 618 Average Temperature 149 | . 193 110 67 232 Received Heat Transfer 1257 | . 105 450 18 684 Effects 47 | . 16 . . 31 Shutdowns 10 | . 3 . . 7 Energy Bleed 4 | . . . . 4 Interference 6 | . 3 . . 3 Matter Decay 4 | . 2 . . 2 Short Circuit 5 | . 2 . . 3 Damage (minor) 2 | . 1 . . 1 Damage (major) 10 | . 4 . . 6 Damage (core) 6 | . 1 . . 5 Siege Activations . | . . . . . Robots Corrupted . | . . . . . Combat Hostiles . | . . . . . Parts Fried . | . . . . . Impact Corruptions . | . . . . . Robots Melted . | . . . . . Combat Hostiles . | . . . . . Parts Melted 6 | . 6 . . . Heat Transferred 1998 | . 1591 . . 407 Parts Sabotaged . | . . . . . Parts Stolen . | . . . . . Parts Stripped . | . . . . . Power Chain Reactions . | . . . . . Alert | -11 -10 -9 -9 -8 ------- Run | Yrd Mat Mat Min Mat Peak Influence 589 | . 189 589 467 331 Initial 143 | . . 23 143 21 Average 228 | . 94 314 262 173 Maximum Alert Level 2 | . . 2 2 1 Low Security (%) 40 | 100 100 14 25 44 Level 1 43 | . . 55 54 55 Level 2 16 | . . 29 20 . Level 3 . | . . . . . Level 4 . | . . . . . Level 5 . | . . . . . High Security . | . . . . . Max Security . | . . . . . Squads Dispatched 5 | . . 3 . 2 Investigation 2 | . . 1 . 1 Extermination . | . . . . . Reinforcement 3 | . . 2 . 1 Assault . | . . . . . Garrison . | . . . . . Intercept . | . . . . . Searches Triggered . | . . . . . Construction Impeded 1 | . . . . 1 Haulers Reinforced . | . . . . . Active Scanning Responses . | . . . . . Cargo Convoy Interrupts . | . . . . . Stealth | -11 -10 -9 -9 -8 --------- Run | Yrd Mat Mat Min Mat Distress Signals 6 | . 2 2 . 2 Communications Jammed . | . . . . . Distress Signals . | . . . . . Times Spotted 95 | . 13 44 12 26 Peak Tracking Total 9 | . 6 9 4 7 Tactical Retreats 3 | . . 3 . . Traps | -11 -10 -9 -9 -8 ------- Run | Yrd Mat Mat Min Mat Traps Triggered 2 | . . 1 . 1 Indirectly . | . . . . . Trap Hack Attempts . | . . . . . Triggered . | . . . . . Disarmed . | . . . . . Reprogrammed . | . . . . . Reused . | . . . . . Traps Extracted . | . . . . . Installed . | . . . . . Triggered . | . . . . . Machines | -11 -10 -9 -9 -8 ---------- Run | Yrd Mat Mat Min Mat Machines Disabled 1 | . . 1 . . Max in Single Turn 1 | . . 1 . . Machines Repaired . | . . . . . Machines Dismantled . | . . . . . Machines Sabotaged . | . . . . . Overloaded Fab Kills . | . . . . . Hacking | -11 -10 -9 -9 -8 --------- Run | Yrd Mat Mat Min Mat Machines Accessed 9 | . 3 5 . 1 Terminals 6 | . 3 3 . . Fabricators . | . . . . . Repair Stations 1 | . . 1 . . Recycling Units . | . . . . . Scanalyzers 2 | . . 1 . 1 Garrison Access . | . . . . . Total Hacks 31 | . 7 16 . 8 Successful 26 | . 6 12 . 8 Failed 5 | . 1 4 . . Catastrophic . | . . . . . Database Lockouts . | . . . . . Manual . | . . . . . Terminals 14 | . 7 7 . . Fabricators . | . . . . . Repair Stations 3 | . . 3 . . Recycling Units . | . . . . . Scanalyzers 14 | . . 6 . 8 Garrison Access . | . . . . . Terminal Hacks 10 | . 6 4 . . Record 3 | . 3 . . . Robot Analysis 3 | . 1 2 . . Alert Level 3 | . 1 2 . . Reinforcement Status 1 | . 1 . . . Fabricator Hacks . | . . . . . Repair Station Hacks 3 | . . 3 . . Scan Component 1 | . . 1 . . Repair 1 | . . 1 . . Refit 1 | . . 1 . . Recycling Unit Hacks . | . . . . . Scanalyzer 13 | . . 5 . 8 Insert Component 6 | . . 2 . 4 Analyze 7 | . . 3 . 4 Garrison Access Hacks . | . . . . . Unauthorized Hacks . | . . . . . Terminals . | . . . . . Fabricators . | . . . . . Repair Stations . | . . . . . Recycling Units . | . . . . . Scanalyzers . | . . . . . Garrison Access . | . . . . . Data Cores Recovered . | . . . . . Used . | . . . . . Hacking Detections 9 | . 3 5 . 1 Full Trace Events 3 | . . 2 . 1 Feedback Events . | . . . . . Feedback Blocked . | . . . . . Robot Schematics Acquired . | . . . . . Robots Built . | . . . . . Authchips . | . . . . . Time . | . . . . . Total Robot Build Rating . | . . . . . Part Schematics Acquired 4 | . . 1 . 3 Parts Built . | . . . . . Authchips . | . . . . . Time . | . . . . . Total Part Build Rating . | . . . . . Parts Repaired 1 | . . 1 . . Time 38 | . . 38 . . Parts Recycled . | . . . . . Recycled Matter . | . . . . . Retrieved Matter . | . . . . . Retrieved Components . | . . . . . Parts Scanalyzed 4 | . . 1 . 3 Part Schematics Acquired 4 | . . 1 . 3 Parts Damaged . | . . . . . Bothacking | -11 -10 -9 -9 -8 ------------ Run | Yrd Mat Mat Min Mat Used RIF Installer . | . . . . . Robots Hacked . | . . . . . Non-combat . | . . . . . Combat . | . . . . . Robot Hacks Applied . | . . . . . Relay Couplers Released . | . . . . . Fabnet Peak Effective % . | . . . . . Robots Rewired . | . . . . . Allies Hacked . | . . . . . Hacks Repelled . | . . . . . Allies | -11 -10 -9 -9 -8 -------- Run | Yrd Mat Mat Min Mat Total Allies . | . . . . . Largest Group . | . . . . . Highest-Rated Group . | . . . . . Highest-Rated Ally . | . . . . . Total Orders . | . . . . . Ally Attacks . | . . . . . Total Damage . | . . . . . Kills . | . . . . . Allies Corrupted . | . . . . . Allies Melted . | . . . . . Intel | -11 -10 -9 -9 -8 ------- Run | Yrd Mat Mat Min Mat Robot Analysis Total 3 | . 1 2 . . Derelict Logs Recovered 3 | . . . 3 . Drone Launches . | . . . . . Drone Recoveries . | . . . . . Exploration | -11 -10 -9 -9 -8 ------------- Run | Yrd Mat Mat Min Mat Turns Passed 2884 | 86 529 859 1066 344 Spaces Moved 1352 | 52 320 342 526 112 Core 13 | 13 . . . . Treads 85 | 39 46 . . . Legs 1254 | . 274 342 526 112 Wheels . | . . . . . Hover . | . . . . . Flight . | . . . . . Fastest Speed 50 | 50 120 120 190 120 Average Speed 166 | 132 125 179 190 150 Slowest Speed 190 | 160 160 190 190 190 Overloaded Moves . | . . . . . Propulsion Burnouts . | . . . . . Robots Hopped . | . . . . . Cave-ins Triggered . | . . . . . Exploration Rate (%) 41 | 4 48 40 98 15 Regions Visited 4 Branch Regions 1 Pre-discovered Areas . | . . . . . Known Exits Taken . | . . . . . Unknown Exits Taken 4 | 1 1 1 1 . Scrap Searched 2 | . . . 2 . Spaces Dug . | . . . . . Terrain Destroyed 20 | . . 14 4 2 Melee . | . . . . . Projectile 20 | . . 14 4 2 AOE . | . . . . . Terrain Rammed . | . . . . . Walls Destroyed . | . . . . . Machines Disabled . | . . . . . Actions | -11 -10 -9 -9 -8 --------- Run | Yrd Mat Mat Min Mat Total 1701 | 69 388 477 558 209 Wait 1 | . 1 . . . Move 1348 | 51 319 341 525 112 Hop . | . . . . . Pick Up 73 | 12 16 27 7 11 Fast Attach . | . . . . . Attach 28 | 6 3 11 . 8 Detach . | . . . . . Swap 38 | . 8 12 8 10 Drop 46 | . 11 22 2 11 Fire 166 | . 30 63 16 57 Melee . | . . . . . Ram . | . . . . . Kick 1 | . . 1 . . Crush . | . . . . . Escape Stasis . | . . . . . Rewire . | . . . . . Trap . | . . . . . Miscellaneous . | . . . . . Route ------- -11/Scrapyard -10/Materials -9/Materials (discovered 2 exits: [*Min x2]) -9/Mines (discovered 2 exits: *Mat x2) -8/Materials (discovered 1 exit: Sto) History --------- Turn | Location | Event 2 | -11/Scrapyard | Met Revision 17 17 | -11/Scrapyard | Discovered new exit (range 15) 87 | -11/Scrapyard | Entered Materials 301 | -10/Materials | Build established: Mutant 596 | -10/Materials | Discovered new exit (range 7) 616 | -10/Materials | Entered another Materials area 616 | -9/Materials | Evolved 2 slots: Power x1, Utility x1 695 | -9/Materials | Discovered new exit (range 3) 765 | -9/Materials | Destroyed 7 combat bots 1102 | -9/Materials | Repaired Lgt. Nuclear Core? 1462 | -9/Materials | Discovered new exit (range 8) 1475 | -9/Materials | Entered Mines 1597 | -9/Mines | Destroyed 7 combat bots 1865 | -9/Mines | Learned Materials terminal intel 1900 | -9/Mines | Discovered new exit (range 6) 1919 | -9/Mines | Learned Materials non-interactive machine intel 1919 | -9/Mines | Discovered new exit (range 11) 2471 | -9/Mines | Found a hidden stash of uninstalled traps 2541 | -9/Mines | Entered Materials 2541 | -8/Materials | Evolved 2 slots: Propulsion x1, Utility x1 2542 | -8/Materials | Identified exit to Storage 2543 | -8/Materials | Loaded intel: 29 non-interactive machine locations 2544 | -8/Materials | Loaded intel: 11 terminal locations 2834 | -8/Materials | Build established: Scavenger-Mutant 2864 | -8/Materials | Core integrity fell below 50% 2880 | -8/Materials | Core integrity fell below 20% 2886 | -8/Materials | Core destroyed Last Messages --------------- Overheating: Aluminum Leg damaged (-14). Overheating: Med. Storage Unit damaged (-50). Slug penetrates Wall. Broken Hvy. Assault Rifle destroyed. G-47 Trooper knocked back. Overheating: System interference. Visual Processing Unit temporarily disabled. Assault Cannon temporarily disabled. Slug penetrates Wall. Power failure, Lgt. Ion Engine shutdown. Overheating: Core damaged (-77). Aluminum Leg destroyed. K-01 Serf cleans the Terminal. Penetrated by Slug. Assault Cannon destroyed. Power failure, Lgt. Nuclear Core shutdown. Overheating: Matter decay (-21). K-01 Serf cleans the Terminal. Aluminum Leg destroyed. Overheating: Core damaged (-110). Map ----- +----------------------------------------------------+ | ""???????????"""""???????????"""""???????????????? | | ""????????????"""????????????"""""???????????????? | | ?????????????????????????????"""""???????????????? | | ??????????????????????????????"""????????????????? | | ?????????????????????????????????????????????????? | | ?????????????????????????????????????????????????? | | ?????????????????????????????????????????????????? | | ?????????????????????????????????????????????????? | | ?????????????????????????????????????????????????? | | ?????????????????????????????????????????????????? | | ?????????????????????????????????????????????????? | | ?????????????????????????????????????????????????? | | ?????????????????????????????????????????????????? | | ?????????????????????????????????????????????????? | | ?????????????????????????????????????????????????? | | ?"T"?"T"?????????????#???????????????????????????? | | ?????????????????????w ??????????????????????????? | | ?????????????????????? ??????????????????????????? | | ??????????????????????k?????????????????????""""?? | | ??????????????????????# ????????????????????""""?? | | ??????????????????????#%????????????????????""""?? | | ??????????????????????#t######???????????????????? | | ??????????????????????#um !#??????????????""""?? | | ??????????????????????#r"T" ##########?????""""?? | | ??????????????????????#kh g # #?????""""?? | | ??????????????????????# %@g # "" #??????????? | | ?????????????????"""??####g;## ""S #??????????? | | ?????????????????"""?????# %*# "" #??????????? | | ?????????????????"""?????#==*+ #??????????? | | ?????????????????????????# ! # """ #??????????? | | ?????????????????????????# # """ #??????????? | | ?????????????????????????# # """ #??????????? | | ?????????????????????????#!=*# #??????????? | | ?????????????????????????#%*%##########??????????? | | ?????????????????????????#=!=#???????????????????? | | ?????????????????????????#%!=#???????????????????? | | ?????????????????????????#!=*#???????????????????? | | ?????????????????????????#!%%#???????????????????? | | ?????????????????????????# [ #???????????????????? | | ?????????????????????????# ##??????????????????? | | ?????????????????????????# ##??????????????????? | | ?????????????????????????#= ##??????????????????? | | ?????????????????????????# ##??????????????????? | | ????????????????????????## ! ##??????????????????? | | ????????????????????????## #???????????????????? | | ?????????????????????????# #??????????########## | | ?????????????????????????# #??????????# # | | ????????????????????????## ##?????????# """ # | | ????????????????????????# ###+####### """ # | | ????????????????????????# [ = =* # """ # | +----------------------------------------------------+ Best States ------------- Heat Dissipation 31 Energy Generation 23 Energy Capacity 650 Matter Stores 300 Matter Capacity 300 Sight Range 18 Terrain Scan Density 85 Armor Coverage 150 Resistance: KI 20 Resistance: TH 20 Resistance: EX 20 Resistance: EM 20 Resistance: I 20 Resistance: S 20 Resistance: P 20 Evasion (%) 55 Targeting Accuracy 5 Recoil Reduction 4 Offensive Hacking 10 Item Schematics ----------------- Imp. Ion Engine | -9/Materials | Scanalyzed Huge Storage Unit | -8/Materials | Scanalyzed Assault Cannon | -8/Materials | Scanalyzed Aluminum Leg | -8/Materials | Scanalyzed Robot Schematics ------------------ None Fabricated ------------ Nothing Alien Tech Used ----------------- None Achievements -------------- Armchair Analyst Challenges ------------ None Game ------ Seed LinearPhysicsTearclaws Manual? 0 Play Time 00:56:31 Cumulative 11.5 hours Start 2024.03.02 @ 21:52:15 End 2024.03.02 @ 22:53:40 Sessions 1 Manual Loads 0 Difficulty Adventurer Special Mode None Game No. 9 Rogue 0 Adventurer 9 Explorer 0 Win Type - Total 0 Types 0/0/0/0/0/0/0/0/0 Lore% 14 Gallery% 13 Achievement% 14 Wizard Run 0 Options --------- Layout 1 ASCII 0 Keyboard 0 Movement Mouse Keybinds 0 Fullscreen 1 Font 24/Smallcaps Map View 50x35 Zoom Use 0% Tactical HUD 0 Map Filters NONE Filters NONE Steam 1 RUN: 919c4197-df82-44ff-b473-cf5beaf72b9c